[Event "African Championship"]
[Site "followchess.com"]
[Date "2021.05.25"]
[Round "7"]
[White "Masango, Spencer"]
[Black "Beukes, Dante M"]
[Result "1-0"]
[ECO "E97"]
[WhiteElo "2071"]
[BlackElo "2284"]
[PlyCount "59"]
[EventDate "2021.??.??"]
[TimeControl "7200+30"]
[WhiteClock "0:02:44"]
[BlackClock "0:33:13"]

1. Nf3 {[%emt 0:29:43]} Nf6 {[%emt 0:30:24]} 2. c4 {[%emt 0:00:06]} g6 {
[%emt 0:00:06]} 3. Nc3 {[%emt 0:00:04]} Bg7 {[%emt 0:00:04]} 4. e4 {[%emt 0:00:
04]} d6 {[%emt 0:00:49]} 5. d4 {[%emt 0:00:06]} O-O {[%emt 0:00:06]} 6. Be2 {
[%emt 0:00:03]} e5 {[%emt 0:00:10]} 7. O-O {[%emt 0:00:10]} Nc6 {[%emt 0:01:06]
} 8. d5 {[%emt 0:00:06]} Ne7 {[%emt 0:00:05]} 9. b4 {[%emt 0:00:04]} a5 {
[%emt 0:00:15]} 10. Ba3 {[%emt 0:00:05]} axb4 {[%emt 0:00:09]} 11. Bxb4 {
[%emt 0:00:05]} Re8 {[%emt 0:00:17]} 12. c5 {[%emt 0:00:35]} dxc5 {[%emt 0:00:
43]} 13. Bxc5 {[%emt 0:00:06]} c6 {[%emt 0:00:06]} 14. Qb3 {[%emt 0:03:13]}
cxd5 {[%emt 0:11:00]} 15. Rfd1 {[%emt 0:00:34]} Qc7 {[%emt 0:24:26]} 16. Bxe7 {
[%emt 0:06:16]} Qxe7 {[%emt 0:00:11]} 17. exd5 {[%emt 0:00:17]} Ra3 {[%emt 0:
13:55]} 18. Qb2 {[%emt 0:03:33]} Qc5 {[%emt 0:10:49]} 19. Rac1 {[%emt 0:10:00]}
Ng4 {[%emt 0:06:52]} 20. Ne4 {[%emt 0:01:42]} Qa7 {[%emt 0:01:22]} 21. Qb5 {
[%emt 0:22:11]} Rd8 {[%emt 0:02:43]} 22. Nfg5 {[%emt 0:02:09]} Bd7 {[%emt 0:12:
54]} 23. Qxd7 {[%emt 0:00:43]} Rxd7 {[%emt 0:00:05]} 24. Rc8+ {[%emt 0:00:16]}
Bf8 {[%emt 0:00:12]} 25. Bxg4 {[%emt 0:00:34]} h6 {[%emt 0:06:32]} 26. Bxd7 {
[%emt 0:09:30]} hxg5 {[%emt 0:00:16]} 27. d6 {[%emt 0:05:05]} Rxa2 {[%emt 0:03:
46]} 28. Bg4 {[%emt 0:04:13]} f5 {[%emt 0:01:19]} 29. d7 {[%emt 0:00:07]} fxe4
{[%emt 0:01:04]} 30. Rxf8+ {[%emt 0:00:07]} 1-0

[Event "African Championship"]
[Site "followchess.com"]
[Date "2021.05.25"]
[Round "7"]
[White "Mwale, George"]
[Black "Mphungu, Gerrard"]
[Result "1/2-1/2"]
[ECO "D02"]
[WhiteElo "1982"]
[BlackElo "2096"]
[PlyCount "168"]
[EventDate "2021.??.??"]
[TimeControl "7200+30"]
[WhiteClock "0:13:03"]
[BlackClock "0:14:59"]

1. Nf3 d5 {[%emt 0:29:34]} 2. d4 {[%emt 0:30:02]} Nf6 {[%emt 0:00:05]} 3. g3 {
[%emt 0:00:07]} c6 {[%emt 0:00:06]} 4. Bg2 {[%emt 0:00:10]} Bf5 {[%emt 0:00:02]
} 5. O-O {[%emt 0:00:20]} e6 {[%emt 0:00:08]} 6. Nbd2 {[%emt 0:00:19]} h6 {
[%emt 0:01:25]} 7. b3 {[%emt 0:00:21]} Nbd7 {[%emt 0:01:15]} 8. Bb2 {[%emt 0:
00:11]} Qa5 {[%emt 0:01:15]} 9. a3 {[%emt 0:01:46]} Be7 {[%emt 0:00:27]} 10.
Ne5 {[%emt 0:02:30]} Nxe5 {[%emt 0:03:46]} 11. dxe5 {[%emt 0:00:02]} Nd7 {
[%emt 0:00:11]} 12. e4 {[%emt 0:02:56]} Bxe4 {[%emt 0:35:33]} 13. Bxe4 {
[%emt 0:07:54]} dxe4 {[%emt 0:01:37]} 14. Nc4 {[%emt 0:00:17]} Qd8 {[%emt 0:05:
43]} 15. Qg4 {[%emt 0:02:30]} O-O {[%emt 0:04:33]} 16. Rad1 {[%emt 0:00:45]}
Qc7 {[%emt 0:03:55]} 17. Qxe4 {[%emt 0:05:04]} Nb6 {[%emt 0:07:42]} 18. Ne3 {
[%emt 0:05:20]} Rad8 {[%emt 0:02:35]} 19. Rde1 {[%emt 0:01:14]} Rd7 {[%emt 0:
04:03]} 20. Ng4 {[%emt 0:01:04]} Rfd8 {[%emt 0:02:51]} 21. Re2 {[%emt 0:07:59]}
Rd1 {[%emt 0:01:14]} 22. Ree1 {[%emt 0:03:14]} Rxe1 {[%emt 0:00:20]} 23. Rxe1 {
[%emt 0:00:01]} Qd7 {[%emt 0:01:25]} 24. Ne3 {[%emt 0:10:49]} Bc5 {[%emt 0:02:
38]} 25. Nf1 {[%emt 0:08:41]} Qd5 {[%emt 0:04:05]} 26. Qf4 {[%emt 0:00:51]} Bd4
{[%emt 0:00:53]} 27. c4 {[%emt 0:02:28]} Qd7 {[%emt 0:07:48]} 28. Bc1 {[%emt 0:
00:51]} Bc3 {[%emt 0:01:55]} 29. Re3 {[%emt 0:11:31]} Qd4 {[%emt 0:01:36]} 30.
Rf3 {[%emt 0:06:55]} Qxf4 {[%emt 0:01:03]} 31. gxf4 {[%emt 0:00:15]} Ba1 {
[%emt 0:01:34]} 32. Bd2 {[%emt 0:00:37]} Nc8 {[%emt 0:00:37]} 33. Kg2 {[%emt 0:
02:43]} Ne7 {[%emt 0:00:37]} 34. Be3 {[%emt 0:01:41]} Nf5 35. Rh3 {[%emt 0:00:
09]} Bd4 {[%emt 0:02:02]} 36. Bxd4 {[%emt 0:04:02]} Rxd4 {[%emt 0:00:14]} 37.
Ne3 {[%emt 0:00:10]} Nxe3+ {[%emt 0:01:23]} 38. Rxe3 {[%emt 0:00:01]} a5 {
[%emt 0:01:03]} 39. Kf3 {[%emt 0:00:31]} a4 {[%emt 0:01:38]} 40. c5 {[%emt 0:
00:00]} Rd5 {[%emt 0:00:00]} 41. bxa4 {[%emt 0:00:00]} Rxc5 {[%emt 0:00:00]}
42. Rb3 {[%emt 0:00:00]} Rc4 {[%emt 0:00:00]} 43. Rxb7 {[%emt 0:00:00]} Rxa4 {
[%emt 0:00:00]} 44. Rb3 {[%emt 0:00:00]} Kh7 {[%emt 0:00:00]} 45. Rc3 {[%emt 0:
00:00]} Kg6 {[%emt 0:00:00]} 46. Kg3 {[%emt 0:00:00]} Kf5 {[%emt 0:00:00]} 47.
f3 {[%emt 0:00:00]} g5 {[%emt 0:00:00]} 48. fxg5 {[%emt 0:00:00]} hxg5 {
[%emt 0:00:00]} 49. Rxc6 {[%emt 0:00:00]} Rxa3 {[%emt 0:00:00]} 50. Rc7 {
[%emt 0:00:00]} Kg6 {[%emt 0:00:00]} 51. Rc5 {[%emt 0:00:00]} Ra4 {[%emt 0:00:
00]} 52. Rb5 {[%emt 0:00:00]} Rf4 {[%emt 0:00:00]} 53. Rb7 {[%emt 0:00:00]} Rf5
{[%emt 0:00:00]} 54. Rb4 {[%emt 0:00:00]} Rxe5 {[%emt 0:00:00]} 55. h4 {
[%emt 0:00:00]} gxh4+ {[%emt 0:00:00]} 56. Rxh4 {[%emt 0:00:05]} Re2 {[%emt 0:
00:00]} 57. Rg4+ {[%emt 0:00:21]} Kf5 {[%emt 0:00:00]} 58. Rf4+ {[%emt 0:00:05]
} Kg6 {[%emt 0:00:00]} 59. Rg4+ {[%emt 0:00:09]} Kf6 {[%emt 0:00:00]} 60. Rf4+
{[%emt 0:00:18]} Ke7 {[%emt 0:00:00]} 61. Ra4 {[%emt 0:00:13]} f5 {[%emt 0:01:
50]} 62. Ra3 {[%emt 0:03:04]} Kf6 {[%emt 0:00:13]} 63. f4 {[%emt 0:01:05]} Kg6
{[%emt 0:00:14]} 64. Rb3 {[%emt 0:00:39]} Kf7 {[%emt 0:01:06]} 65. Rb7+ {
[%emt 0:01:05]} Kf6 {[%emt 0:00:05]} 66. Rb3 {[%emt 0:00:18]} Rc2 {[%emt 0:00:
02]} 67. Ra3 {[%emt 0:00:49]} Ke7 {[%emt 0:00:01]} 68. Rd3 {[%emt 0:00:36]} Rc1
{[%emt 0:00:37]} 69. Kf3 {[%emt 0:01:01]} Rh1 {[%emt 0:00:14]} 70. Kg2 {
[%emt 0:00:37]} Rh8 {[%emt 0:00:06]} 71. Kg3 {[%emt 0:00:17]} Rd8 {[%emt 0:00:
03]} 72. Ra3 {[%emt 0:00:18]} Rc8 {[%emt 0:00:24]} 73. Rd3 {[%emt 0:00:15]} Rc6
{[%emt 0:00:00]} 74. Kf3 {[%emt 0:00:26]} Rd6 {[%emt 0:00:01]} 75. Ra3 {
[%emt 0:00:10]} Kd7 {[%emt 0:00:38]} 76. Ra7+ {[%emt 0:01:53]} Kc6 {[%emt 0:00:
01]} 77. Ra6+ {[%emt 0:00:13]} Kc7 {[%emt 0:01:26]} 78. Ra3 {[%emt 0:02:21]}
Rc6 {[%emt 0:00:07]} 79. Rd3 {[%emt 0:00:27]} Kb6 {[%emt 0:00:02]} 80. Re3 {
[%emt 0:01:08]} Kc5 {[%emt 0:00:01]} 81. Re5+ {[%emt 0:00:20]} Kd6 {[%emt 0:01:
50]} 82. Re3 {[%emt 0:00:05]} Rc4 {[%emt 0:00:13]} 83. Ra3 {[%emt 0:02:04]} Kd5
{[%emt 0:00:50]} 84. Re3 {[%emt 0:00:18]} Re4 {[%emt 0:00:02]} 1/2-1/2

[Event "African Championship"]
[Site "followchess.com"]
[Date "2021.05.25"]
[Round "7"]
[White "Mwali, Chitumbo"]
[Black "Bwalya, Gillan"]
[Result "0-1"]
[ECO "A07"]
[WhiteElo "2285"]
[BlackElo "2405"]
[PlyCount "53"]
[EventDate "2021.??.??"]
[TimeControl "7200+30"]
[WhiteClock "0:28:38"]
[BlackClock "0:51:34"]

1. Nf3 {[%emt 0:29:33]} d5 {[%emt 0:32:05]} 2. g3 {[%emt 0:01:57]} Nc6 {
[%emt 0:03:23]} 3. d4 {[%emt 0:00:30]} Nf6 {[%emt 0:00:41]} 4. Bg2 {[%emt 0:00:
06]} Bf5 {[%emt 0:00:37]} 5. O-O {[%emt 0:00:07]} e6 {[%emt 0:02:12]} 6. c4 {
[%emt 0:02:21]} Bd6 {[%emt 0:04:27]} 7. Nc3 {[%emt 0:02:47]} h6 {[%emt 0:00:27]
} 8. cxd5 {[%emt 0:03:26]} exd5 {[%emt 0:05:21]} 9. Qb3 {[%emt 0:01:32]} Na5 {
[%emt 0:05:30]} 10. Qa4+ {[%emt 0:01:02]} c6 {[%emt 0:00:23]} 11. Ne5 {[%emt 0:
00:08]} O-O {[%emt 0:00:32]} 12. a3 {[%emt 0:12:52]} Bxe5 {[%emt 0:11:36]} 13.
dxe5 {[%emt 0:00:32]} Nd7 {[%emt 0:01:47]} 14. e4 {[%emt 0:09:46]} dxe4 {
[%emt 0:12:26]} 15. Nxe4 {[%emt 0:01:11]} Nxe5 {[%emt 0:10:07]} 16. Bf4 {
[%emt 0:01:30]} Nd3 {[%emt 0:03:51]} 17. Nd6 {[%emt 0:03:43]} Bg6 {[%emt 0:02:
30]} 18. Bd2 {[%emt 0:02:50]} Qxd6 {[%emt 0:02:15]} 19. Bxa5 {[%emt 0:00:48]}
Nxb2 {[%emt 0:00:13]} 20. Qb3 {[%emt 0:00:50]} Nd3 {[%emt 0:01:27]} 21. Rfd1 {
[%emt 0:02:25]} Qc5 {[%emt 0:00:26]} 22. Rxd3 {[%emt 0:00:54]} Bxd3 {[%emt 0:
00:09]} 23. Bb4 {[%emt 0:00:07]} Qb5 {[%emt 0:00:25]} 24. a4 {[%emt 0:00:06]}
Qb6 {[%emt 0:00:10]} 25. Qc3 {[%emt 0:00:10]} Rfd8 {[%emt 0:01:10]} 26. Ba5 {
[%emt 0:00:13]} Qd4 {[%emt 0:00:12]} 27. Qxd4 0-1

[Event "African Championship"]
[Site "followchess.com"]
[Date "2021.05.25"]
[Round "7"]
[White "Mwangupili Francisco"]
[Black "Calicoca, Wilton Inacio"]
[Result "0-1"]
[ECO "D10"]
[WhiteElo "1897"]
[BlackElo "2122"]
[PlyCount "96"]
[EventDate "2021.??.??"]
[TimeControl "7200+30"]
[WhiteClock "0:31:05"]
[BlackClock "0:54:33"]

1. d4 {[%emt 0:31:57]} d5 {[%emt 0:29:37]} 2. c4 {[%emt 0:00:48]} c6 {[%emt 0:
00:07]} 3. Nc3 {[%emt 0:01:32]} Nf6 {[%emt 0:00:03]} 4. Bf4 {[%emt 0:00:14]} e6
{[%emt 0:06:13]} 5. e3 {[%emt 0:00:42]} Bd6 {[%emt 0:00:13]} 6. Bxd6 {[%emt 0:
01:45]} Qxd6 {[%emt 0:00:02]} 7. Nf3 {[%emt 0:00:10]} Nbd7 {[%emt 0:00:14]} 8.
Bd3 {[%emt 0:00:13]} dxc4 {[%emt 0:08:38]} 9. Bxc4 {[%emt 0:00:45]} O-O {
[%emt 0:00:06]} 10. O-O {[%emt 0:00:07]} b5 {[%emt 0:05:01]} 11. Bd3 {[%emt 0:
00:54]} a6 {[%emt 0:00:04]} 12. e4 {[%emt 0:02:30]} e5 {[%emt 0:00:05]} 13. Re1
{[%emt 0:04:53]} Re8 {[%emt 0:14:21]} 14. Ne2 {[%emt 0:05:32]} g6 {[%emt 0:08:
51]} 15. Qd2 {[%emt 0:02:01]} exd4 {[%emt 0:00:37]} 16. Nexd4 {[%emt 0:03:04]}
c5 {[%emt 0:05:26]} 17. Nc2 {[%emt 0:10:22]} Bb7 {[%emt 0:01:34]} 18. Rad1 {
[%emt 0:01:34]} Ne5 {[%emt 0:06:11]} 19. Nxe5 {[%emt 0:05:28]} Qxe5 {[%emt 0:
00:07]} 20. b3 {[%emt 0:04:49]} Rad8 {[%emt 0:05:04]} 21. f4 {[%emt 0:02:07]}
Qb2 {[%emt 0:13:44]} 22. e5 {[%emt 0:10:57]} Ne4 {[%emt 0:10:06]} 23. Qe3 {
[%emt 0:01:30]} Nc3 {[%emt 0:01:00]} 24. Rd2 {[%emt 0:01:11]} Nd5 {[%emt 0:08:
27]} 25. Qf2 {[%emt 0:03:06]} Qc3 {[%emt 0:00:15]} 26. Be4 {[%emt 0:02:53]}
Nxf4 {[%emt 0:03:30]} 27. Rxd8 {[%emt 0:01:17]} Rxd8 {[%emt 0:00:01]} 28. Bxb7
{[%emt 0:00:21]} Nd3 {[%emt 0:02:24]} 29. Re3 {[%emt 0:03:34]} c4 {[%emt 0:00:
11]} 30. Be4 {[%emt 0:02:33]} Nxf2 {[%emt 0:01:39]} 31. Rxc3 {[%emt 0:00:13]}
Nxe4 {[%emt 0:00:01]} 32. Re3 {[%emt 0:00:13]} Rd1+ {[%emt 0:01:15]} 33. Ne1 {
[%emt 0:01:58]} c3 {[%emt 0:00:40]} 34. Rxe4 {[%emt 0:03:45]} c2 {[%emt 0:00:
03]} 35. Kf2 {[%emt 0:00:18]} c1=Q {[%emt 0:00:08]} 36. Nf3 {[%emt 0:00:15]}
Qc5+ {[%emt 0:00:30]} 37. Kg3 {[%emt 0:00:06]} Rd3 {[%emt 0:00:14]} 38. Re2 {
[%emt 0:00:23]} Qd5 {[%emt 0:00:28]} 39. h3 {[%emt 0:00:18]} g5 {[%emt 0:00:11]
} 40. Kh2 {[%emt 0:00:00]} Rxf3 {[%emt 0:00:00]} 41. gxf3 {[%emt 0:00:00]} Qxf3
{[%emt 0:00:00]} 42. Rg2 {[%emt 0:00:00]} Qf4+ {[%emt 0:00:00]} 43. Kg1 {
[%emt 0:00:00]} Qxe5 {[%emt 0:00:00]} 44. Kf2 {[%emt 0:00:00]} Qf4+ {[%emt 0:
00:00]} 45. Kg1 {[%emt 0:00:00]} f5 {[%emt 0:00:00]} 46. Kh1 {[%emt 0:00:00]}
h5 {[%emt 0:00:00]} 47. a4 {[%emt 0:00:00]} bxa4 {[%emt 0:00:00]} 48. bxa4 {
[%emt 0:00:00]} a5 {[%emt 0:00:00]} 0-1

[Event "African Championship"]
[Site "followchess.com"]
[Date "2021.05.25"]
[Round "7"]
[White "Paiva, Donaldo"]
[Black "Okonkwo, Ifeanyi"]
[Result "0-1"]
[ECO "A20"]
[WhiteElo "2230"]
[BlackElo "2029"]
[PlyCount "65"]
[EventDate "2021.??.??"]
[TimeControl "7200+30"]
[WhiteClock "0:12:12"]
[BlackClock "0:20:59"]

1. c4 {[%emt 0:35:05]} e5 {[%emt 0:29:55]} 2. g3 {[%emt 0:00:10]} Nf6 {[%emt 0:
00:16]} 3. Bg2 {[%emt 0:00:08]} Nc6 {[%emt 0:00:51]} 4. a3 {[%emt 0:00:18]} d5
{[%emt 0:00:53]} 5. cxd5 {[%emt 0:00:11]} Nxd5 {[%emt 0:00:03]} 6. d3 {[%emt 0:
00:13]} Be7 {[%emt 0:01:44]} 7. Nf3 {[%emt 0:02:42]} O-O {[%emt 0:00:44]} 8.
O-O {[%emt 0:00:06]} Re8 {[%emt 0:04:32]} 9. Nc3 {[%emt 0:00:09]} Nxc3 {
[%emt 0:02:26]} 10. bxc3 {[%emt 0:00:08]} Bf5 {[%emt 0:01:37]} 11. Nd2 {
[%emt 0:00:33]} Qd7 {[%emt 0:01:15]} 12. Rb1 {[%emt 0:00:14]} Rab8 {[%emt 0:02:
00]} 13. Re1 {[%emt 0:00:16]} Bh3 {[%emt 0:01:48]} 14. Bh1 {[%emt 0:00:07]} Be6
{[%emt 0:03:09]} 15. Qc2 {[%emt 0:09:06]} Bd5 {[%emt 0:00:36]} 16. Nf3 {
[%emt 0:00:07]} Bc5 {[%emt 0:01:06]} 17. c4 {[%emt 0:09:14]} Bxf3 {[%emt 0:02:
59]} 18. exf3 {[%emt 0:00:07]} Nd4 {[%emt 0:00:34]} 19. Qc3 {[%emt 0:00:26]}
Qf5 {[%emt 0:01:56]} 20. Be3 {[%emt 0:00:40]} b6 {[%emt 0:01:51]} 21. f4 {
[%emt 0:02:46]} Rbd8 {[%emt 0:04:43]} 22. Be4 {[%emt 0:03:16]} Qf6 {[%emt 0:13:
31]} 23. fxe5 {[%emt 0:03:33]} Rxe5 {[%emt 0:01:06]} 24. Bxd4 {[%emt 0:09:32]}
Bxd4 {[%emt 0:02:53]} 25. Qd2 {[%emt 0:02:01]} g6 {[%emt 0:00:54]} 26. Kg2 {
[%emt 0:00:35]} Rde8 {[%emt 0:03:40]} 27. Re2 {[%emt 0:02:42]} Kg7 {[%emt 0:05:
24]} 28. a4 Qe7 {[%emt 0:17:40]} 29. Rbe1 Qd7 {[%emt 0:05:09]} 30. Qf4 Bc3 {
[%emt 0:01:40]} 31. Rc1 {[%emt 0:30:32]} Qd4 {[%emt 0:01:46]} 32. Rec2 {
[%emt 0:00:30]} Bb4 {[%emt 0:05:07]} 33. Bc6 {[%emt 0:00:04]} 0-1

[Event "African Championship"]
[Site "followchess.com"]
[Date "2021.05.25"]
[Round "7"]
[White "Wageih, Kareim"]
[Black "Silva, David"]
[Result "0-1"]
[ECO "E98"]
[WhiteElo "2425"]
[BlackElo "2296"]
[PlyCount "130"]
[EventDate "2021.??.??"]
[TimeControl "7200+30"]
[WhiteClock "0:17:55"]
[BlackClock "0:00:48"]

1. d4 {[%emt 0:32:57]} Nf6 {[%emt 0:30:20]} 2. c4 {[%emt 0:00:20]} g6 {[%emt 0:
00:07]} 3. Nc3 {[%emt 0:00:09]} Bg7 {[%emt 0:00:07]} 4. e4 {[%emt 0:00:11]} d6
{[%emt 0:00:08]} 5. Nf3 {[%emt 0:00:26]} O-O {[%emt 0:00:06]} 6. Be2 {[%emt 0:
00:08]} e5 {[%emt 0:00:08]} 7. O-O {[%emt 0:00:14]} Nc6 {[%emt 0:00:04]} 8. d5
{[%emt 0:00:11]} Ne7 {[%emt 0:00:13]} 9. Ne1 {[%emt 0:00:31]} Nd7 {[%emt 0:04:
53]} 10. Be3 {[%emt 0:00:17]} f5 {[%emt 0:04:10]} 11. f3 {[%emt 0:00:10]} a5 {
[%emt 0:00:20]} 12. a3 {[%emt 0:06:09]} Nc5 {[%emt 0:00:59]} 13. Nd3 {[%emt 0:
15:59]} b6 {[%emt 0:01:25]} 14. Rc1 {[%emt 0:17:31]} Ba6 {[%emt 0:15:32]} 15.
b4 {[%emt 0:00:41]} Nd7 {[%emt 0:00:11]} 16. c5 {[%emt 0:11:23]} axb4 {[%emt 0:
17:13]} 17. axb4 {[%emt 0:06:04]} bxc5 {[%emt 0:02:12]} 18. bxc5 {[%emt 0:00:
48]} Bxd3 {[%emt 0:00:07]} 19. cxd6 {[%emt 0:10:19]} cxd6 {[%emt 0:00:36]} 20.
Qxd3 {[%emt 0:00:52]} Ra3 {[%emt 0:04:06]} 21. Qb5 {[%emt 0:05:32]} fxe4 {
[%emt 0:07:29]} 22. fxe4 {[%emt 0:00:01]} Rxf1+ {[%emt 0:00:12]} 23. Bxf1 {
[%emt 0:00:59]} Nf6 {[%emt 0:00:03]} 24. Qb4 {[%emt 0:01:55]} Ra8 {[%emt 0:02:
32]} 25. h3 {[%emt 0:01:18]} Rb8 {[%emt 0:06:38]} 26. Nb5 {[%emt 0:01:07]} Ne8
{[%emt 0:00:08]} 27. Be2 {[%emt 0:06:04]} Bf8 {[%emt 0:03:23]} 28. Rf1 {
[%emt 0:02:47]} Nc8 {[%emt 0:01:06]} 29. Qc4 {[%emt 0:01:43]} h5 {[%emt 0:03:
22]} 30. Ra1 {[%emt 0:02:29]} Be7 {[%emt 0:00:40]} 31. Ra6 {[%emt 0:00:59]} Bg5
{[%emt 0:01:53]} 32. Bf2 {[%emt 0:00:38]} Bh6 {[%emt 0:03:40]} 33. Ra3 {
[%emt 0:01:36]} Ne7 {[%emt 0:02:33]} 34. Na7 {[%emt 0:01:20]} Rb1+ {[%emt 0:00:
10]} 35. Kh2 {[%emt 0:01:33]} Rc1 {[%emt 0:01:17]} 36. Rc3 {[%emt 0:01:27]}
Rxc3 {[%emt 0:00:09]} 37. Qxc3 {[%emt 0:00:01]} Nf6 {[%emt 0:00:13]} 38. Qc4 {
[%emt 0:01:24]} Kg7 {[%emt 0:00:41]} 39. Nc6 {[%emt 0:00:17]} Qd7 {[%emt 0:00:
05]} 40. Bb6 {[%emt 0:00:00]} Qb7 {[%emt 0:00:00]} 41. Bf2 {[%emt 0:00:00]} Qd7
{[%emt 0:00:00]} 42. Qa4 {[%emt 0:00:00]} Neg8 {[%emt 0:00:00]} 43. Bb5 {
[%emt 0:00:00]} Qf7 {[%emt 0:00:00]} 44. Ba7 {[%emt 0:00:00]} g5 {[%emt 0:00:
00]} 45. Bd3 {[%emt 0:00:00]} g4 {[%emt 0:00:00]} 46. Qc2 {[%emt 0:00:00]} h4 {
[%emt 0:00:00]} 47. Qe2 {[%emt 0:00:20]} Bf4+ {[%emt 0:00:00]} 48. Kh1 {
[%emt 0:00:51]} Nh6 {[%emt 0:00:00]} 49. Bf2 {[%emt 0:00:42]} Bg3 {[%emt 0:00:
00]} 50. Nd8 {[%emt 0:00:42]} Qh5 {[%emt 0:00:00]} 51. Ne6+ {[%emt 0:00:25]}
Kh8 {[%emt 0:00:00]} 52. Be3 {[%emt 0:00:53]} Nhg8 {[%emt 0:01:21]} 53. Qd1 {
[%emt 0:03:07]} Qg6 {[%emt 0:00:21]} 54. Qc2 {[%emt 0:00:38]} Be1 {[%emt 0:01:
22]} 55. Ng5 {[%emt 0:00:46]} Nh7 {[%emt 0:01:40]} 56. Nxh7 {[%emt 0:00:29]}
Kxh7 {[%emt 0:00:25]} 57. Qc7+ {[%emt 0:00:22]} Kh8 {[%emt 0:00:54]} 58. hxg4 {
[%emt 0:00:22]} Qxg4 {[%emt 0:01:15]} 59. Qxd6 {[%emt 0:00:40]} Qg3 {[%emt 0:
00:45]} 60. Qb6 {[%emt 0:00:41]} Ba5 {[%emt 0:05:08]} 61. Qa7 {[%emt 0:00:30]}
Nf6 {[%emt 0:00:42]} 62. Qxa5 {[%emt 0:00:18]} Qxe3 {[%emt 0:00:18]} 63. Qc3 {
[%emt 0:00:36]} Kg7 {[%emt 0:00:36]} 64. Qc2 {[%emt 0:00:34]} Qe1+ {[%emt 0:00:
35]} 65. Kh2 {[%emt 0:00:16]} Ng4+ {[%emt 0:00:02]} 0-1

[Event "African Championship"]
[Site "followchess.com"]
[Date "2021.05.26"]
[Round "8"]
[White "Abdulraheem Abdulrahman Akint"]
[Black "Chipanga, Chiletso"]
[Result "0-1"]
[ECO "A45"]
[WhiteElo "2264"]
[BlackElo "2043"]
[PlyCount "150"]
[EventDate "2021.??.??"]
[TimeControl "7200+30"]
[WhiteClock "0:11:20"]
[BlackClock "0:00:31"]

1. d4 {[%emt 0:29:37]} Nf6 {[%emt 0:29:53]} 2. Bg5 {[%emt 0:00:09]} c6 {
[%emt 0:00:48]} 3. Bxf6 {[%emt 0:03:22]} exf6 {[%emt 0:00:41]} 4. e3 {[%emt 0:
00:48]} d5 {[%emt 0:01:07]} 5. Nd2 {[%emt 0:00:33]} Qb6 {[%emt 0:02:07]} 6. Qc1
{[%emt 0:01:32]} Bf5 {[%emt 0:01:20]} 7. Ngf3 {[%emt 0:00:53]} g5 {[%emt 0:00:
42]} 8. Bd3 {[%emt 0:01:03]} Bxd3 {[%emt 0:01:29]} 9. cxd3 {[%emt 0:00:03]} Na6
{[%emt 0:01:43]} 10. a3 {[%emt 0:01:16]} Nc7 {[%emt 0:00:58]} 11. Qc2 {[%emt 0:
01:42]} a5 {[%emt 0:00:49]} 12. O-O {[%emt 0:00:49]} Ne6 {[%emt 0:02:14]} 13.
Rfc1 {[%emt 0:00:56]} Bd6 {[%emt 0:02:49]} 14. Nb3 {[%emt 0:00:55]} Qc7 {
[%emt 0:00:30]} 15. g3 {[%emt 0:19:56]} h5 {[%emt 0:05:20]} 16. e4 {[%emt 0:08:
16]} a4 {[%emt 0:04:56]} 17. exd5 {[%emt 0:03:15]} cxd5 {[%emt 0:05:54]} 18.
Qxc7 {[%emt 0:04:00]} Nxc7 {[%emt 0:00:18]} 19. Nc5 {[%emt 0:02:52]} Ra7 {
[%emt 0:02:09]} 20. b3 {[%emt 0:03:29]} axb3 {[%emt 0:01:46]} 21. Nxb3 {
[%emt 0:00:36]} Kd7 {[%emt 0:04:22]} 22. Nc5+ {[%emt 0:01:38]} Bxc5 {[%emt 0:
00:37]} 23. dxc5 {[%emt 0:09:40]} Ne6 {[%emt 0:03:15]} 24. Rab1 {[%emt 0:02:11]
} Kc7 {[%emt 0:00:30]} 25. Rc3 {[%emt 0:09:12]} Rha8 {[%emt 0:07:59]} 26. Rcb3
{[%emt 0:02:23]} g4 {[%emt 0:01:19]} 27. Ne1 {[%emt 0:03:12]} d4 {[%emt 0:12:
50]} 28. Rb6 {[%emt 0:01:56]} Rd8 {[%emt 0:02:11]} 29. Nc2 {[%emt 0:03:18]} Rd5
{[%emt 0:00:21]} 30. R6b4 {[%emt 0:09:17]} Ng5 {[%emt 0:02:32]} 31. Kg2 {
[%emt 0:00:56]} Nf3 {[%emt 0:00:33]} 32. Ne1 {[%emt 0:02:39]} Ne5 {[%emt 0:05:
43]} 33. Nc2 {[%emt 0:00:28]} Nf3 {[%emt 0:07:06]} 34. Ne1 {[%emt 0:00:20]} Ng5
{[%emt 0:00:03]} 35. Nc2 {[%emt 0:00:26]} Ne6 {[%emt 0:00:22]} 36. Rb5 {
[%emt 0:01:25]} f5 {[%emt 0:01:22]} 37. R1b4 {[%emt 0:02:01]} f4 {[%emt 0:01:
01]} 38. gxf4 {[%emt 0:00:18]} Nxf4+ {[%emt 0:03:03]} 39. Kf1 {[%emt 0:00:30]}
Ne6 {[%emt 0:00:28]} 40. Rc4 {[%emt 0:00:00]} Ra8 {[%emt 0:00:00]} 41. a4 {
[%emt 0:00:00]} h4 {[%emt 0:00:00]} 42. c6 {[%emt 0:00:00]} Rxb5 {[%emt 0:00:
00]} 43. axb5 {[%emt 0:00:00]} Rd8 {[%emt 0:00:00]} 44. Nb4 {[%emt 0:00:00]}
Rd6 {[%emt 0:00:00]} 45. Rc2 {[%emt 0:00:00]} bxc6 {[%emt 0:00:00]} 46. Nxc6 {
[%emt 0:00:00]} Kb6 {[%emt 0:00:00]} 47. Ne5 {[%emt 0:00:00]} Rd5 {[%emt 0:00:
00]} 48. Nxg4 {[%emt 0:00:00]} Rxb5 {[%emt 0:00:00]} 49. Rc1 {[%emt 0:00:00]}
Nf4 {[%emt 0:00:00]} 50. Rd1 {[%emt 0:00:00]} Kc7 {[%emt 0:00:00]} 51. Nf6 {
[%emt 0:01:39]} Kd6 {[%emt 0:00:00]} 52. Ne4+ {[%emt 0:00:21]} Kd5 {[%emt 0:00:
00]} 53. Ng5 {[%emt 0:01:24]} Rb3 {[%emt 0:00:00]} 54. Nxf7 {[%emt 0:01:25]}
Nxd3 {[%emt 0:00:00]} 55. Nh6 {[%emt 0:02:19]} Nb2 {[%emt 0:03:14]} 56. Ra1 {
[%emt 0:02:12]} Rf3 {[%emt 0:01:04]} 57. Ng4 {[%emt 0:00:30]} h3 {[%emt 0:01:
13]} 58. Ke2 {[%emt 0:00:32]} Rc3 {[%emt 0:00:46]} 59. Ra8 {[%emt 0:00:37]} d3+
{[%emt 0:02:30]} 60. Kf3 {[%emt 0:00:35]} d2+ {[%emt 0:00:12]} 61. Ne3+ {
[%emt 0:00:02]} Ke6 {[%emt 0:03:34]} 62. Ke2 {[%emt 0:00:13]} Rxe3+ {[%emt 0:
00:18]} 63. Kxd2 {[%emt 0:00:15]} Nc4+ {[%emt 0:00:47]} 64. Kd1 {[%emt 0:00:24]
} Rb3 {[%emt 0:02:31]} 65. Rg8 {[%emt 0:00:33]} Ne5 {[%emt 0:01:02]} 66. Ke2 {
[%emt 0:00:50]} Kf5 {[%emt 0:00:14]} 67. Rf8+ {[%emt 0:00:28]} Ke4 {[%emt 0:00:
24]} 68. Rh8 {[%emt 0:00:32]} Ng6 {[%emt 0:00:38]} 69. f3+ {[%emt 0:01:15]} Kf5
{[%emt 0:02:00]} 70. Rh5+ {[%emt 0:00:29]} Kf6 {[%emt 0:00:12]} 71. Kf2 {
[%emt 0:00:21]} Rb2+ {[%emt 0:00:12]} 72. Kg1 {[%emt 0:00:40]} Nf4 {[%emt 0:00:
19]} 73. Rh8 {[%emt 0:00:15]} Rg2+ {[%emt 0:00:38]} 74. Kh1 {[%emt 0:00:13]}
Ne2 {[%emt 0:00:42]} 75. Rf8+ {[%emt 0:01:03]} Ke5 0-1